[Event "Titled Tuesday Blitz June 28 Early 2022"]
[White "Lashkin, Jegor"]
[Black "Araujo Sanchez, Josue"]
[WhiteFideId "13907808"]
[BlackFideId "6416896"]
[WhiteElo "2368"]
[BlackElo "2339"]
[Result "0-1"]
[Round "09"]
[TimeControl "180+1"]
[Date "2022.06.28"]
[WhiteClock "0:00:01"]
[BlackClock "0:00:04"]

1. d4 {[%clk 0:03:00]}  Nf6 {[%clk 0:02:59]} 2. c4 {[%clk 0:03:01]}  e6 {[%clk 0:02:59]} 3. Nf3 {[%clk 0:03:01]}  b6 {[%clk 0:02:59]} 4. g3 {[%clk 0:03:01]}  Bb7 {[%clk 0:02:59]} 5. Bg2 {[%clk 0:03:01]}  Be7 {[%clk 0:02:59]} 6. O-O {[%clk 0:03:01]}  O-O {[%clk 0:03:00]} 7. Nc3 {[%clk 0:03:02]}  d5 {[%clk 0:02:59]} 8. Ne5 {[%clk 0:03:01]}  c6 {[%clk 0:02:58]} 9. Bf4 {[%clk 0:02:56]}  Nbd7 {[%clk 0:02:59]} 10. e4 {[%clk 0:02:44]}  dxe4 {[%clk 0:02:53]} 11. Nxe4 {[%clk 0:02:44]}  Nxe5 {[%clk 0:02:52]} 12. Bxe5 {[%clk 0:02:30]}  Nxe4 {[%clk 0:02:17]} 13. Bxe4 {[%clk 0:02:31]}  Bf6 {[%clk 0:02:13]} 14. Qg4 {[%clk 0:02:04]}  Bxe5 {[%clk 0:02:06]} 15. dxe5 {[%clk 0:02:04]}  Qc7 {[%clk 0:02:06]} 16. Qh5 {[%clk 0:01:32]}  h6 {[%clk 0:01:45]} 17. Rad1 {[%clk 0:01:30]}  Rad8 {[%clk 0:01:44]} 18. Qe2 {[%clk 0:01:16]}  c5 {[%clk 0:01:43]} 19. Bxb7 {[%clk 0:01:15]}  Qxb7 {[%clk 0:01:43]} 20. Rd6 {[%clk 0:01:15]}  Rxd6 {[%clk 0:01:36]} 21. exd6 {[%clk 0:01:16]}  Rd8 {[%clk 0:01:36]} 22. Rd1 {[%clk 0:01:16]}  Qc6 {[%clk 0:01:31]} 23. Qe5 {[%clk 0:01:12]}  Qf3 {[%clk 0:01:30]} 24. Rd2 {[%clk 0:01:08]}  Rd7 {[%clk 0:01:28]} 25. b3 {[%clk 0:01:07]}  h5 {[%clk 0:01:26]} 26. h4 {[%clk 0:00:54]}  g6 {[%clk 0:01:22]} 27. Qg5 {[%clk 0:00:49]}  Kf8 {[%clk 0:00:54]} 28. Qe5 {[%clk 0:00:38]}  Kg8 {[%clk 0:00:51]} 29. Qe1 {[%clk 0:00:34]}  Kg7 {[%clk 0:00:34]} 30. Qa1+ {[%clk 0:00:33]}  Qf6 {[%clk 0:00:34]} 31. Qd1 {[%clk 0:00:34]}  Qe5 {[%clk 0:00:33]} 32. Rd3 {[%clk 0:00:30]}  f6 {[%clk 0:00:31]} 33. Qd2 {[%clk 0:00:24]}  Qa1+ {[%clk 0:00:30]} 34. Kh2 {[%clk 0:00:23]}  Qe5 {[%clk 0:00:31]} 35. Kg2 {[%clk 0:00:21]}  Kf7 {[%clk 0:00:25]} 36. Kf1 {[%clk 0:00:20]}  Qe4 {[%clk 0:00:20]} 37. Re3 {[%clk 0:00:15]}  Qh1+ {[%clk 0:00:19]} 38. Ke2 {[%clk 0:00:15]}  Qc6 {[%clk 0:00:20]} 39. Rd3 {[%clk 0:00:15]}  Qe4+ {[%clk 0:00:20]} 40. Kd1 {[%clk 0:00:14]}  Qf5 {[%clk 0:00:21]} 41. Kc1 {[%clk 0:00:14]}  Qe5 {[%clk 0:00:20]} 42. Kb1 {[%clk 0:00:14]}  f5 {[%clk 0:00:19]} 43. a3 {[%clk 0:00:11]}  a6 {[%clk 0:00:19]} 44. Ka2 {[%clk 0:00:11]}  b5 {[%clk 0:00:19]} 45. Qh6 {[%clk 0:00:07]}  Rxd6 {[%clk 0:00:14]} 46. Qh7+ {[%clk 0:00:07]}  Kf8 {[%clk 0:00:14]} 47. Qh6+ {[%clk 0:00:05]}  Ke7 {[%clk 0:00:14]} 48. Qh7+ {[%clk 0:00:06]}  Kd8 {[%clk 0:00:14]} 49. Qg8+ {[%clk 0:00:04]}  Kc7 {[%clk 0:00:11]} 50. Qf7+ {[%clk 0:00:04]}  Kb6 {[%clk 0:00:11]} 51. Rxd6+ {[%clk 0:00:04]}  Qxd6 {[%clk 0:00:12]} 52. Qxg6 {[%clk 0:00:04]}  Qd2+ {[%clk 0:00:11]} 53. Kb1 {[%clk 0:00:04]}  Qe1+ {[%clk 0:00:12]} 54. Kc2 {[%clk 0:00:04]}  Qxf2+ {[%clk 0:00:12]} 55. Kd1 {[%clk 0:00:04]}  Qd4+ {[%clk 0:00:10]} 56. Ke1 {[%clk 0:00:03]}  Qe4+ {[%clk 0:00:08]} 57. Kf2 {[%clk 0:00:03]}  bxc4 {[%clk 0:00:09]} 58. bxc4 {[%clk 0:00:02]}  Qd4+ {[%clk 0:00:09]} 59. Kg2 {[%clk 0:00:02]}  Qe4+ {[%clk 0:00:08]} 60. Kh2 {[%clk 0:00:02]}  Qe2+ {[%clk 0:00:07]} 61. Kh1 {[%clk 0:00:02]}  Qf1+ {[%clk 0:00:06]} 62. Kh2 {[%clk 0:00:02]}  Qe2+ {[%clk 0:00:06]} 63. Kh1 {[%clk 0:00:03]}  Ka5 {[%clk 0:00:06]} 64. Qf6 {[%clk 0:00:03]}  Ka4 {[%clk 0:00:05]} 65. Qc3 {[%clk 0:00:03]}  a5 {[%clk 0:00:05]} 66. Kg1 {[%clk 0:00:03]}  e5 {[%clk 0:00:03]} 67. Qc1 {[%clk 0:00:02]}  Qe4 {[%clk 0:00:03]} 68. Qd1+ {[%clk 0:00:02]}  Kxa3 {[%clk 0:00:04]} 69. Qa1+ {[%clk 0:00:03]}  Kb4 {[%clk 0:00:04]} 70. Qb2+ {[%clk 0:00:03]}  Kxc4 {[%clk 0:00:05]} 71. Qa2+ {[%clk 0:00:04]}  Kd4 {[%clk 0:00:05]} 72. Qa4+ {[%clk 0:00:03]}  c4 {[%clk 0:00:05]} 73. Qa1+ {[%clk 0:00:03]}  c3 {[%clk 0:00:05]} 74. Qa4+ {[%clk 0:00:03]}  Kd3 {[%clk 0:00:06]} 75. Qd1+ {[%clk 0:00:04]}  Kc4 {[%clk 0:00:06]} 76. Qa4+ {[%clk 0:00:04]}  Kd3 {[%clk 0:00:06]} 77. Qd1+ {[%clk 0:00:04]}  Ke3 {[%clk 0:00:07]} 78. Qe1+ {[%clk 0:00:04]}  Kf3 {[%clk 0:00:07]} 79. Qf2+ {[%clk 0:00:05]}  Kg4 {[%clk 0:00:07]} 80. Kh2 {[%clk 0:00:04]}  c2 {[%clk 0:00:07]} 81. Qd2 {[%clk 0:00:04]}  f4 {[%clk 0:00:06]} 82. Qd7+ {[%clk 0:00:02]}  Kf3 {[%clk 0:00:05]} 83. gxf4 {[%clk 0:00:01]}  Qxf4+ {[%clk 0:00:04]} 84. Kh1 {[%clk 0:00:01]}  c1=Q+ {[%clk 0:00:04]} 0-1


[Site "https://www.chess.com"]

[Event "Titled Tuesday Blitz June 28 Early 2022"]
[White "Malyi, Viacheslav"]
[Black "Dronavalli, Harika"]
[WhiteFideId "14123983"]
[BlackFideId "5015197"]
[WhiteElo "2270"]
[BlackElo "2382"]
[Result "0-1"]
[Round "09"]
[TimeControl "180+1"]
[Date "2022.06.28"]
[WhiteClock "0:01:16"]
[BlackClock "0:01:10"]

1. e4 {[%clk 0:02:56]}  c5 {[%clk 0:02:59]} 2. Nf3 {[%clk 0:02:54]}  e6 {[%clk 0:02:59]} 3. g3 {[%clk 0:02:53]}  Nc6 {[%clk 0:02:56]} 4. Bg2 {[%clk 0:02:53]}  e5 {[%clk 0:02:55]} 5. O-O {[%clk 0:02:53]}  g6 {[%clk 0:02:55]} 6. c3 {[%clk 0:02:51]}  Bg7 {[%clk 0:02:56]} 7. d3 {[%clk 0:02:50]}  Nge7 {[%clk 0:02:51]} 8. Nbd2 {[%clk 0:02:49]}  O-O {[%clk 0:02:50]} 9. Nc4 {[%clk 0:02:50]}  d6 {[%clk 0:02:51]} 10. a4 {[%clk 0:02:48]}  Be6 {[%clk 0:02:50]} 11. Ng5 {[%clk 0:02:45]}  Bc8 {[%clk 0:02:50]} 12. Nf3 {[%clk 0:02:37]}  h6 {[%clk 0:02:50]} 13. Ne3 {[%clk 0:02:34]}  Be6 {[%clk 0:02:49]} 14. c4 {[%clk 0:02:34]}  Qd7 {[%clk 0:02:39]} 15. Nd5 {[%clk 0:02:33]}  Bh3 {[%clk 0:02:32]} 16. Re1 {[%clk 0:02:32]}  Bxg2 {[%clk 0:02:32]} 17. Kxg2 {[%clk 0:02:33]}  f5 {[%clk 0:02:30]} 18. a5 {[%clk 0:02:31]}  g5 {[%clk 0:02:19]} 19. Bd2 {[%clk 0:02:24]}  Rf7 {[%clk 0:02:14]} 20. b4 {[%clk 0:02:24]}  Raf8 {[%clk 0:02:04]} 21. bxc5 {[%clk 0:02:18]}  fxe4 {[%clk 0:02:04]} 22. Nxe7+ {[%clk 0:02:07]}  Qxe7 {[%clk 0:01:45]} 23. Ng1 {[%clk 0:02:05]}  Rxf2+ {[%clk 0:01:44]} 24. Kh1 {[%clk 0:02:06]}  exd3 {[%clk 0:01:37]} 25. Be3 {[%clk 0:02:06]}  e4 {[%clk 0:01:24]} 26. Bxf2 {[%clk 0:01:53]}  Rxf2 {[%clk 0:01:24]} 27. cxd6 {[%clk 0:01:49]}  Qxd6 {[%clk 0:01:21]} 28. Rxe4 {[%clk 0:01:45]}  Bxa1 {[%clk 0:01:17]} 29. Qxa1 {[%clk 0:01:38]}  d2 {[%clk 0:01:17]} 30. Re8+ {[%clk 0:01:36]}  Rf8 {[%clk 0:01:16]} 31. Rxf8+ {[%clk 0:01:30]}  Kxf8 {[%clk 0:01:11]} 32. Qh8+ {[%clk 0:01:29]}  Ke7 {[%clk 0:01:11]} 33. Qg7+ {[%clk 0:01:23]}  Kd8 {[%clk 0:01:11]} 34. c5 {[%clk 0:01:16]}  Qd5+ {[%clk 0:01:10]} 0-1


[Site "https://www.chess.com"]

[Event "Titled Tuesday Blitz June 28 Early 2022"]
[White "Marjanovic, Annamaria"]
[Black "Dushyant Sharma"]
[WhiteFideId "750930"]
[BlackFideId "25065130"]
[WhiteElo "2156"]
[BlackElo "2105"]
[Result "1-0"]
[Round "09"]
[TimeControl "180+1"]
[Date "2022.06.28"]
[WhiteClock "0:00:59"]
[BlackClock "0:00:08"]

1. b3 {[%clk 0:03:00]}  d5 {[%clk 0:02:59]} 2. Bb2 {[%clk 0:03:00]}  e6 {[%clk 0:02:59]} 3. g3 {[%clk 0:02:59]}  f5 {[%clk 0:02:59]} 4. Bg2 {[%clk 0:02:59]}  Nf6 {[%clk 0:02:58]} 5. f4 {[%clk 0:02:57]}  Be7 {[%clk 0:02:57]} 6. Nf3 {[%clk 0:02:57]}  O-O {[%clk 0:02:58]} 7. O-O {[%clk 0:02:57]}  c5 {[%clk 0:02:58]} 8. d3 {[%clk 0:02:57]}  Nc6 {[%clk 0:02:58]} 9. e3 {[%clk 0:02:57]}  b5 {[%clk 0:02:56]} 10. a4 {[%clk 0:02:54]}  b4 {[%clk 0:02:55]} 11. Nbd2 {[%clk 0:02:54]}  Bb7 {[%clk 0:02:50]} 12. Qe2 {[%clk 0:02:53]}  Rc8 {[%clk 0:02:50]} 13. Ne5 {[%clk 0:02:48]}  a5 {[%clk 0:02:50]} 14. Nxc6 {[%clk 0:02:46]}  Bxc6 {[%clk 0:02:51]} 15. Nf3 {[%clk 0:02:46]}  Nd7 {[%clk 0:02:45]} 16. Ne5 {[%clk 0:02:45]}  Nxe5 {[%clk 0:02:43]} 17. Bxe5 {[%clk 0:02:46]}  Bf6 {[%clk 0:02:42]} 18. Bxf6 {[%clk 0:02:37]}  Qxf6 {[%clk 0:02:41]} 19. Rae1 {[%clk 0:02:38]}  e5 {[%clk 0:02:29]} 20. g4 {[%clk 0:02:23]}  fxg4 {[%clk 0:01:34]} 21. Qxg4 {[%clk 0:02:22]}  e4 {[%clk 0:01:34]} 22. dxe4 {[%clk 0:02:16]}  dxe4 {[%clk 0:01:35]} 23. Kh1 {[%clk 0:02:14]}  c4 {[%clk 0:01:34]} 24. Rg1 {[%clk 0:02:09]}  cxb3 {[%clk 0:01:32]} 25. cxb3 {[%clk 0:02:10]}  Bd5 {[%clk 0:01:31]} 26. Qh5 {[%clk 0:01:56]}  Rfd8 {[%clk 0:00:56]} 27. Rd1 {[%clk 0:01:45]}  Qf7 {[%clk 0:00:40]} 28. Qg5 {[%clk 0:01:32]}  h6 {[%clk 0:00:38]} 29. Qe5 {[%clk 0:01:31]}  Bxb3 {[%clk 0:00:24]} 30. Rxd8+ {[%clk 0:01:31]}  Rxd8 {[%clk 0:00:25]} 31. Qxa5 {[%clk 0:01:29]}  Rb8 {[%clk 0:00:16]} 32. Bxe4 {[%clk 0:01:23]}  Be6 {[%clk 0:00:13]} 33. Qe5 {[%clk 0:01:20]}  Re8 {[%clk 0:00:12]} 34. Qd4 {[%clk 0:01:02]}  Bf5 {[%clk 0:00:07]} 35. Bxf5 {[%clk 0:00:59]}  Qxf5 {[%clk 0:00:08]} 36. Qxg7# {[%clk 0:00:59]} 1-0


[Site "https://www.chess.com"]

[Event "Titled Tuesday Blitz June 28 Early 2022"]
[White "Martinez Alcantara, Jose Eduardo"]
[Black "Ozdemir, Serhan Berat"]
[WhiteFideId "3805662"]
[BlackFideId "6374611"]
[WhiteElo "2703"]
[BlackElo "1920"]
[Result "1-0"]
[Round "09"]
[TimeControl "180+1"]
[Date "2022.06.28"]
[WhiteClock "0:01:46"]
[BlackClock "0:00:03"]

1. e4 {[%clk 0:03:00]}  c5 {[%clk 0:02:06]} 2. Nf3 {[%clk 0:02:58]}  e6 {[%clk 0:02:06]} 3. d4 {[%clk 0:02:59]}  cxd4 {[%clk 0:02:07]} 4. Nxd4 {[%clk 0:03:00]}  a6 {[%clk 0:02:07]} 5. Nc3 {[%clk 0:03:00]}  b5 {[%clk 0:02:08]} 6. Bd3 {[%clk 0:02:58]}  Qb6 {[%clk 0:02:08]} 7. Nb3 {[%clk 0:02:57]}  Qc7 {[%clk 0:02:08]} 8. Be3 {[%clk 0:02:57]}  Bb7 {[%clk 0:02:07]} 9. O-O {[%clk 0:02:57]}  Nf6 {[%clk 0:02:07]} 10. a3 {[%clk 0:02:55]}  Be7 {[%clk 0:01:38]} 11. f4 {[%clk 0:02:53]}  d6 {[%clk 0:01:38]} 12. Qf3 {[%clk 0:02:52]}  Nbd7 {[%clk 0:01:35]} 13. Rae1 {[%clk 0:02:52]}  O-O {[%clk 0:01:32]} 14. Qh3 {[%clk 0:02:52]}  g6 {[%clk 0:01:01]} 15. f5 {[%clk 0:02:38]}  exf5 {[%clk 0:00:30]} 16. exf5 {[%clk 0:02:37]}  Ne5 {[%clk 0:00:31]} 17. Bd4 {[%clk 0:02:13]}  Rfe8 {[%clk 0:00:20]} 18. Nd2 {[%clk 0:02:03]}  Rad8 {[%clk 0:00:11]} 19. Nde4 {[%clk 0:01:59]}  Nxe4 {[%clk 0:00:11]} 20. Bxe4 {[%clk 0:02:00]}  Bf8 {[%clk 0:00:06]} 21. Bxb7 {[%clk 0:01:56]}  Qxb7 {[%clk 0:00:06]} 22. Ne4 {[%clk 0:01:54]}  Bg7 {[%clk 0:00:03]} 23. f6 {[%clk 0:01:54]}  Bf8 {[%clk 0:00:03]} 24. Ng5 {[%clk 0:01:55]}  h5 {[%clk 0:00:03]} 25. Ne4 {[%clk 0:01:55]}  d5 {[%clk 0:00:01]} 26. Ng3 {[%clk 0:01:45]}  Ng4 {[%clk 0:00:01]} 27. Nxh5 {[%clk 0:01:46]}  gxh5 {[%clk 0:00:01]} 28. Qxh5 {[%clk 0:01:47]}  Rxe1 {[%clk 0:00:01]} 29. Rxe1 {[%clk 0:01:48]}  Bh6 {[%clk 0:00:02]} 30. Qxg4+ {[%clk 0:01:48]}  Kh7 {[%clk 0:00:03]} 31. Qf5+ {[%clk 0:01:48]}  Kh8 {[%clk 0:00:03]} 32. Re7 {[%clk 0:01:47]}  Rg8 {[%clk 0:00:03]} 33. Rxb7 {[%clk 0:01:46]} 1-0


[Site "https://www.chess.com"]

[Event "Titled Tuesday Blitz June 28 Early 2022"]
[White "Mekhane, Adam"]
[Black "Cruz, Cristhian"]
[WhiteFideId "36050601"]
[BlackFideId "3801969"]
[WhiteElo "2002"]
[BlackElo "2497"]
[Result "0-1"]
[Round "09"]
[TimeControl "180+1"]
[Date "2022.06.28"]
[WhiteClock "0:00:02"]
[BlackClock "0:01:09"]

1. e4 {[%clk 0:03:00]}  e6 {[%clk 0:02:58]} 2. d4 {[%clk 0:02:58]}  d5 {[%clk 0:02:57]} 3. exd5 {[%clk 0:02:52]}  exd5 {[%clk 0:02:57]} 4. Nf3 {[%clk 0:02:53]}  Nc6 {[%clk 0:02:56]} 5. Bd3 {[%clk 0:02:48]}  Bd6 {[%clk 0:02:55]} 6. O-O {[%clk 0:02:48]}  Nge7 {[%clk 0:02:55]} 7. c3 {[%clk 0:02:47]}  Bf5 {[%clk 0:02:53]} 8. Bg5 {[%clk 0:02:43]}  Qd7 {[%clk 0:02:52]} 9. a4 {[%clk 0:02:40]}  O-O {[%clk 0:02:36]} 10. Re1 {[%clk 0:02:34]}  a6 {[%clk 0:02:33]} 11. Bh4 {[%clk 0:02:26]}  Rfe8 {[%clk 0:02:31]} 12. Bg3 {[%clk 0:02:25]}  Bxg3 {[%clk 0:02:26]} 13. hxg3 {[%clk 0:02:24]}  Bxd3 {[%clk 0:02:25]} 14. Qxd3 {[%clk 0:02:24]}  Nf5 {[%clk 0:02:25]} 15. Nbd2 {[%clk 0:02:21]}  f6 {[%clk 0:02:12]} 16. Nb3 {[%clk 0:02:21]}  Nd6 {[%clk 0:02:07]} 17. Nc5 {[%clk 0:02:07]}  Qf7 {[%clk 0:02:07]} 18. Rxe8+ {[%clk 0:01:53]}  Rxe8 {[%clk 0:02:04]} 19. Re1 {[%clk 0:01:49]}  a5 {[%clk 0:02:01]} 20. Re2 {[%clk 0:01:28]}  b6 {[%clk 0:01:57]} 21. Nb3 {[%clk 0:01:27]}  Nc4 {[%clk 0:01:54]} 22. Nc1 {[%clk 0:01:24]}  Rxe2 {[%clk 0:01:48]} 23. Qxe2 {[%clk 0:01:22]}  Qe7 {[%clk 0:01:49]} 24. b3 {[%clk 0:01:12]}  Qxe2 {[%clk 0:01:45]} 25. Nxe2 {[%clk 0:01:13]}  Nd6 {[%clk 0:01:45]} 26. Nf4 {[%clk 0:01:09]}  Ne7 {[%clk 0:01:42]} 27. Ne6 {[%clk 0:00:58]}  c6 {[%clk 0:01:42]} 28. Kf1 {[%clk 0:00:55]}  Kf7 {[%clk 0:01:41]} 29. Nf4 {[%clk 0:00:55]}  g5 {[%clk 0:01:38]} 30. Ne2 {[%clk 0:00:45]}  h5 {[%clk 0:01:37]} 31. Nd2 {[%clk 0:00:44]}  Ke6 {[%clk 0:01:35]} 32. f3 {[%clk 0:00:44]}  c5 {[%clk 0:01:29]} 33. Kf2 {[%clk 0:00:44]}  Nc6 {[%clk 0:01:29]} 34. Ke3 {[%clk 0:00:35]}  c4 {[%clk 0:01:19]} 35. bxc4 {[%clk 0:00:31]}  Nxc4+ {[%clk 0:01:19]} 36. Nxc4 {[%clk 0:00:19]}  dxc4 {[%clk 0:01:20]} 37. g4 {[%clk 0:00:19]}  h4 {[%clk 0:01:19]} 38. Ke4 {[%clk 0:00:18]}  Ne7 {[%clk 0:01:15]} 39. d5+ {[%clk 0:00:17]}  Nxd5 {[%clk 0:01:15]} 40. Kd4 {[%clk 0:00:18]}  Kd6 {[%clk 0:01:11]} 41. g3 {[%clk 0:00:17]}  h3 {[%clk 0:01:11]} 42. Kxc4 {[%clk 0:00:01]}  h2 {[%clk 0:01:09]} 43. Nd4 {[%clk 0:00:02]}  h1=Q {[%clk 0:01:09]} 0-1


[Site "https://www.chess.com"]

[Event "Titled Tuesday Blitz June 28 Early 2022"]
[White "Melkumyan, Hrant"]
[Black "Cherniaiev, Tykhon"]
[WhiteFideId "13302485"]
[BlackFideId "14182360"]
[WhiteElo "2604"]
[BlackElo "2289"]
[Result "0-1"]
[Round "09"]
[TimeControl "180+1"]
[Date "2022.06.28"]
[WhiteClock "0:00:05"]
[BlackClock "0:00:08"]

1. Nf3 {[%clk 0:03:00]}  Nf6 {[%clk 0:02:59]} 2. c4 {[%clk 0:02:58]}  e6 {[%clk 0:02:59]} 3. g3 {[%clk 0:02:54]}  d5 {[%clk 0:02:59]} 4. Bg2 {[%clk 0:02:50]}  Be7 {[%clk 0:02:56]} 5. O-O {[%clk 0:02:48]}  O-O {[%clk 0:02:56]} 6. b3 {[%clk 0:02:48]}  c5 {[%clk 0:02:54]} 7. cxd5 {[%clk 0:02:47]}  exd5 {[%clk 0:02:54]} 8. d4 {[%clk 0:02:46]}  cxd4 {[%clk 0:02:53]} 9. Bb2 {[%clk 0:02:45]}  Nc6 {[%clk 0:02:53]} 10. Nxd4 {[%clk 0:02:45]}  h6 {[%clk 0:02:51]} 11. Nc3 {[%clk 0:02:44]}  Re8 {[%clk 0:02:52]} 12. e3 {[%clk 0:02:41]}  a6 {[%clk 0:02:51]} 13. Rc1 {[%clk 0:02:41]}  Bg4 {[%clk 0:02:47]} 14. Qd2 {[%clk 0:02:36]}  Rc8 {[%clk 0:02:44]} 15. h3 {[%clk 0:02:34]}  Bd7 {[%clk 0:02:16]} 16. Rfd1 {[%clk 0:02:20]}  Ne5 {[%clk 0:02:10]} 17. Nce2 {[%clk 0:02:03]}  Ne4 {[%clk 0:02:03]} 18. Rxc8 {[%clk 0:01:32]}  Qxc8 {[%clk 0:02:02]} 19. Bxe4 {[%clk 0:01:14]}  dxe4 {[%clk 0:02:03]} 20. Rc1 {[%clk 0:01:14]}  Qd8 {[%clk 0:01:59]} 21. Nf4 {[%clk 0:01:12]}  Bg5 {[%clk 0:01:44]} 22. Kg2 {[%clk 0:00:56]}  Bxf4 {[%clk 0:01:42]} 23. exf4 {[%clk 0:00:37]}  Nd3 {[%clk 0:01:38]} 24. Rc2 {[%clk 0:00:38]}  Qb6 {[%clk 0:01:16]} 25. Qe3 {[%clk 0:00:37]}  Qa5 {[%clk 0:01:06]} 26. Bc3 {[%clk 0:00:36]}  Qh5 {[%clk 0:01:00]} 27. g4 {[%clk 0:00:32]}  Bxg4 {[%clk 0:00:51]} 28. hxg4 {[%clk 0:00:32]}  Qxg4+ {[%clk 0:00:52]} 29. Kf1 {[%clk 0:00:29]}  Qd1+ {[%clk 0:00:49]} 30. Kg2 {[%clk 0:00:29]}  Qg4+ {[%clk 0:00:49]} 31. Kf1 {[%clk 0:00:28]}  Nxf4 {[%clk 0:00:34]} 32. Ne2 {[%clk 0:00:13]}  Qg2+ {[%clk 0:00:24]} 33. Ke1 {[%clk 0:00:14]}  Rd8 {[%clk 0:00:21]} 34. Nd4 {[%clk 0:00:06]}  Qg1+ {[%clk 0:00:13]} 35. Kd2 {[%clk 0:00:07]}  Ng2 {[%clk 0:00:13]} 36. Qe2 {[%clk 0:00:06]}  Re8 {[%clk 0:00:13]} 37. Nf5 {[%clk 0:00:06]}  Rd8+ {[%clk 0:00:13]} 38. Bd4 {[%clk 0:00:06]}  Nf4 {[%clk 0:00:11]} 39. Qe3 {[%clk 0:00:06]}  Ng2 {[%clk 0:00:08]} 40. Qg3 {[%clk 0:00:05]}  Qe1# {[%clk 0:00:08]} 0-1


[Site "https://www.chess.com"]

[Event "Titled Tuesday Blitz June 28 Early 2022"]
[White "Mendez Fortes, Eduardo Jesus"]
[Black "Martinez, Shawn"]
[WhiteFideId "3502376"]
[BlackFideId "2039770"]
[WhiteElo "2321"]
[BlackElo "2174"]
[Result "1-0"]
[Round "09"]
[TimeControl "180+1"]
[Date "2022.06.28"]
[WhiteClock "0:01:41"]
[BlackClock "0:00:59"]

1. e4 {[%clk 0:03:00]}  c5 {[%clk 0:02:50]} 2. Nf3 {[%clk 0:03:00]}  e6 {[%clk 0:02:50]} 3. d4 {[%clk 0:02:59]}  cxd4 {[%clk 0:02:51]} 4. Nxd4 {[%clk 0:03:00]}  a6 {[%clk 0:02:51]} 5. c4 {[%clk 0:03:00]}  Nf6 {[%clk 0:02:50]} 6. Nc3 {[%clk 0:03:01]}  Bb4 {[%clk 0:02:51]} 7. Qd3 {[%clk 0:03:00]}  Bxc3+ {[%clk 0:02:46]} 8. Qxc3 {[%clk 0:03:00]}  d6 {[%clk 0:02:46]} 9. f3 {[%clk 0:02:59]}  O-O {[%clk 0:02:46]} 10. Be3 {[%clk 0:02:59]}  Qc7 {[%clk 0:02:39]} 11. Be2 {[%clk 0:02:59]}  Nc6 {[%clk 0:02:38]} 12. O-O {[%clk 0:02:58]}  Bd7 {[%clk 0:02:34]} 13. Rfd1 {[%clk 0:02:56]}  Rfd8 {[%clk 0:02:32]} 14. Rac1 {[%clk 0:02:52]}  Be8 {[%clk 0:02:31]} 15. a3 {[%clk 0:02:50]}  Rac8 {[%clk 0:02:31]} 16. b4 {[%clk 0:02:50]}  Ne5 {[%clk 0:02:30]} 17. Nb3 {[%clk 0:02:48]}  Ba4 {[%clk 0:02:09]} 18. c5 {[%clk 0:02:28]}  dxc5 {[%clk 0:01:49]} 19. Rxd8+ {[%clk 0:02:12]}  Rxd8 {[%clk 0:01:48]} 20. Nxc5 {[%clk 0:02:06]}  Be8 {[%clk 0:01:26]} 21. Bf4 {[%clk 0:02:01]}  Nfd7 {[%clk 0:01:24]} 22. Nxd7 {[%clk 0:01:56]}  Qxc3 {[%clk 0:01:22]} 23. Rxc3 {[%clk 0:01:57]}  Nxd7 {[%clk 0:01:20]} 24. Rc7 {[%clk 0:01:51]}  b5 {[%clk 0:01:13]} 25. Ra7 {[%clk 0:01:49]}  Nb6 {[%clk 0:01:05]} 26. Bc7 {[%clk 0:01:41]}  Rd2 {[%clk 0:01:04]} 27. Bxb6 {[%clk 0:01:42]}  Rxe2 {[%clk 0:00:59]} 28. Ra8 {[%clk 0:01:42]}  Kf8 {[%clk 0:00:59]} 29. Bc5+ {[%clk 0:01:41]} 1-0


[Site "https://www.chess.com"]